{"text_format":"3","workbook":"xlsx","n_sheets":1,"sheets":["ID Funktionen"],"not_rendered":{"images":1,"macros":1,"defined_names":7,"comments":1},"read":"whole","date_system":"1900"}

{"sheet":"ID Funktionen","index":0,"n_rows":98,"n_cols":7,"rows_kept":98}
["Übersicht CallID und Funktionen (sortiert nach Ribbon-Gruppen)"]
[]
[1]
[1,null,null,{"$f":"INDEX(LstFunktion,nFunktion,1)","v":0}]
[]
["CallID","Ebene","XLSLink - Funktion","XLSLink - Funktion","Beschreibung","Bezeichnung XLSLink","Funktioniert?"]
[null,0,"Gruppe 'IDL.XLSLINK'",{"$f":"REPT(\" \",$B7)&C7","v":"Gruppe 'IDL.XLSLINK'"}]
[1,3,"Formeleditor aufrufen","   Formeleditor aufrufen","Formel in AppConfig anzeigen","Edit_Bezug_Formel",1]
[5,3,"Abfragen rücksetzen","   Abfragen rücksetzen","Alle abfragen löschen","CancelAllRequests",1]
[17,3,"Info-Anzeige","   Info-Anzeige","Excel Info-Anzeige aufrufen","ShowExcelLog",1]
[null,0,"Gruppe 'Aktualisieren'","Gruppe 'Aktualisieren'"]
[2,3,"selektierter Bereich","   selektierter Bereich","Bereich atualisieren","BereichAktualisieren",1]
[3,3,"Tabellenblatt","   Tabellenblatt","Arbeitsblatt aktualisieren","ArbeitsblattAktualisieren",1]
[4,3,"Arbeitsmappe","   Arbeitsmappe","Gesamtes Dokument aktualisieren","DokumentAktualisieren",1]
[null,3,"Feld/Auswahlliste ˅","   Feld/Auswahlliste ˅"]
[38,6,"selektierter Bereich","      selektierter Bereich","IDLCombo-Bereich atualisieren","IDLCombo_BereichAktualisieren",1]
[39,6,"Tabellenblatt","      Tabellenblatt","IDLCombo-Arbeitsblatt aktualisieren","IDLCombo_ArbeitsblattAktualisieren",1]
[40,6,"Arbeitsmappe","      Arbeitsmappe","IDLCombo-Gesamtes Dokument aktualisieren","IDLCombo_DokumentAktualisieren",1]
[27,3,"Protokoll","   Protokoll","Fortschritt zeigen (wieviele offenen bzw beantwortete Anfragen)","ShowProgressInfo",1]
[null,0,"Gruppe 'Archiv'","Gruppe 'Archiv'"]
[null,3,"Verpacken ˅","   Verpacken ˅"]
[19,6,"selektierter Bereich","      selektierter Bereich","Alle markierten Formeln verpacken","PackAllFormulasCurrentSelection",1]
[20,6,"Tabellenblatt","      Tabellenblatt","Alle Formeln im aktuellen Arbeitsblatt verpacken","PackAllFormulasCurrentWorksheet",1]
[21,6,"Arbeitsmappe","      Arbeitsmappe","Alle Formeln in Arbeitsmappe verpacken","PackAllFormulasCurrentWorkbook",1]
[null,3,"Entpacken ˅","   Entpacken ˅"]
[22,6,"selektierter Bereich","      selektierter Bereich","Alle markierten Formeln entpacken","UnpackAllFormulasCurrentSelection",1]
[23,6,"Tabellenblatt","      Tabellenblatt","Alle Formeln im aktuellen Arbeitsblatt entpacken","UnpackAllFormulasCurrentWorksheet",1]
[24,6,"Arbeitsmappe","      Arbeitsmappe","Alle Formeln in Arbeitsmappe entpacken","UnpackAllFormulasCurrentWorkbook",1]
[null,0,"Gruppe 'Export'","Gruppe 'Export'"]
[7,3,"selektierter Bereich","   selektierter Bereich","Bereich nach Konsis exportieren","ExportToKonsisCurrentSelection",1]
[8,3,"Tabellenblatt","   Tabellenblatt","Tabellenblatt nach Konsis exportieren","ExportToKonsisCurrentWorksheet",1]
[9,3,"Arbeitsmappe","   Arbeitsmappe","Gesamte Arbeitsmappe nach Konsis exportieren","ExportToKonsisCurrentWorkbook",1]
[48,3,"Export zurücksetzen","   Export zurücksetzen","Alle IDLSetValue-Formeln zurücksetzen","ExportToKonsisResetFormula",1]
[null,3,"Datei ˅","   Datei ˅"]
[6,6,"Kopie ohne Formeln erstellen","      Kopie ohne Formeln erstellen","Tabelle in Text-Datei mit Zeichencode 1252 exportieren","ExportToCleanFile",1]
[null,0,"Gruppe 'Werkzeuge'","Gruppe 'Werkzeuge'"]
[33,3,"Nullzeichen ergänzen","   Nullzeichen ergänzen","Nullzeichen ergänzen","PadLeftCurrentSelection",1]
[47,3,"Excel Password","   Excel Password","Excel-Passwörter verwalten","EditExcelPassword",1]
[null,3,"Feld/Auswahlliste ˅","   Feld/Auswahlliste ˅"]
[28,6,"Einfügen aktive Zelle","      Einfügen aktive Zelle","Auswahlliste (IDLCombo) in Zelle einfügen","AddIDLCombo",1]
[29,6,"entfernen","      entfernen","Auswahlliste (IDLCombo) aus Zelle löschen","RemoveIDLCombo",1]
[null,3,"Einstellungen (Zellinhalt) ˅","   Einstellungen (Zellinhalt) ˅"]
[null,6,"Excel Berechnungsoption ˅","      Excel Berechnungsoption ˅"]
[25,9,"Automatisch","         Automatisch","Wechsel ExcelApplicationCalculationMode to xlCalculationAutomatic","ExcelCalculationModeAutomatic",1]
[26,9,"Manuell","         Manuell","Wechsel ExcelApplicationCalculationMode to xlCalculationManual","ExcelCalculationModeManual",1]
[51,9,"Semiautomatisch","         Semiautomatisch","Wechsel ExcelApplicationCalculationMode to xlCalculationSemiautomatic","ExcelCalculationModeSemiautomatic",1]
[35,6,"Periode im Datumformat an/aus","      Periode im Datumformat an/aus","Einstellung \"Periode als Datumsformat\" ändern","TogglePeriodAsDateFormat",1]
[46,6,"Lange Fehlermeldungen an/aus",{"$f":"REPT(\" \",$B48)&C48","v":"      Lange Fehlermeldungen an/aus"},"Einstellung \"Fehlertexte in Excel Lang oder Kurz zeigen\" ändern","ToggleShowLongErrorMessages",1]
[37,6,"Nur IDL Formeln an/aus","      Nur IDL Formeln an/aus","Einstellung \"Nur IDL Formeln\" ändern","TogglePreciseFormulaEvaluation",1]
[null,3,"IDL Zwischenablage ˅","   IDL Zwischenablage ˅"]
[13,6,"Zelle merken","      Zelle merken","Zwischenablage für Zell-Adressen füllen","ClipboardAddCurrentSelection",1]
[45,6,"anzeigen","      anzeigen","Zwischenablage für Zell-Adressen zeigen ","ClipboardShow",1]
[14,6,"löschen","      löschen","Zwischenablage für Zell-Adressen löschen","ClipboardClear",1]
[null,3,"Extras ˅","   Extras ˅"]
[null,6,"Externe Verknüpfungen ˅","      Externe Verknüpfungen ˅"]
[42,9,"prüfen","         prüfen","Externe Verknüpfungen prüfen","ExternalLinksCollectAndShow",1]
[43,9,"anzeigen","         anzeigen","Externe Verknüpfungen anzeigen","ExternalLinksShow",1]
[44,9,"Prüfen beim Laden an/aus","         Prüfen beim Laden an/aus","Einstellung \"Check Externe Verknüpfungen\" ändern","ToggleCheckExternalLinks",1]
[null,3,"IDL.XLSLINK Hauptanwendung","   IDL.XLSLINK Hauptanwendung"]
[16,6,"Status","      Status","IDL.XLSLINK Hauptanwendung Statusinformation ausgeben","Status",1]
[15,6,"Verbinden","      Verbinden","IDL.XLSLINK Hauptanwendung verbinden (NamedPipe - AddIn nach IDLOffice)","Verbinden",1]
[49,6,"Anmeldung: IDL.KONSIS","      Anmeldung: IDL.KONSIS","Anmeldung Datenbanken ausführen","PerformDBLogin",1]
[50,6,"Informationen zu IDL.XLSLINK","      Informationen zu IDL.XLSLINK","IDL System Info anzeigen","ShowIDLSystemInfo",1]
[null,0,"Allgemeine Funktionen","Allgemeine Funktionen"]
[111,3,"Get Current Status","   Get Current Status","Aktuellen Status abfragen (keine detailierte Beschreibung im Code)","GetCurrentStatus",1]
[200,3,"Block Update","   Block Update","XLSLink Update Funktion deaktivieren (keine detailierte Beschreibung im Code)","BlockUpdate",1]
[201,3,"Open Update","   Open Update","XLSLink Update Funktion aktivieren (keine detailierte Beschreibung im Code)","OpenUpdate",1]
[null,3,"Extras ˅","   Extras ˅"]
[null,6,"Konvertierung ˅","      Konvertierung ˅"]
[18,9,"(Connector) abschließen","         (Connector) abschließen","Konvertierung (Alt-Connector -> IDLOffice) abschließen (Nacharbeiten)","FinishConversion"]
[36,9,"(Connector) abschließen AddIn",{"$f":"REPT(\" \",$B71)&C71","v":"         (Connector) abschließen AddIn"},"Konvertierung (Alt-Connector -> IDLOffice) abschließen (Nacharbeiten) - innerhalb AddIn","FinishConversionFromAddIn"]
[41,9,"Format zurücksetzen","         Format zurücksetzen","Konvertierung Zellenformatierung zurücksetzen","ResetCellFormat"]
[null,0,"Sonstige (nicht in Ribbon enthalten)","Sonstige (nicht in Ribbon enthalten)"]
[10,3,"Dokumentenvariable bearbeiten","   Dokumentenvariable bearbeiten","Dokumentenvariable bearbeiten","DocVarEdit"]
[11,3,"Dokumentenvariable löschen","   Dokumentenvariable löschen","Dokumentenvariable löschen","DocVarDelete"]
[12,3,"Update Macros","   Update Macros","Makros in aktueller Datei aktualisieren","UpdateMacros"]
[31,3,"RefreshRange Bezüge berücksichtigen","   RefreshRange Bezüge berücksichtigen","Beim RefreshRange Bezüge berücksichtigen","UpdateCellContentTypeBezug"]
[32,3,"RefreshRange IDLCombo berücksichtigen","   RefreshRange IDLCombo berücksichtigen","Beim RefreshRange IDLCombo berücksichtigen","UpdateCellContentTypeCombo"]
[34,3,"Liste Konsis Exporte","   Liste Konsis Exporte","Formular mit Konsis-Exporten zeigen","ShowExportJobList"]
[]
["CallID","Ebene","XLSLink - Funktion","XLSLink - Funktion","Beschreibung","Bezeichnung XLSLink","Funktioniert?"]
[null,0,"Diverse (nicht relevant","Diverse (nicht relevant"]
[30,0,"Ohne Funktion -> Warnmeldung","Ohne Funktion -> Warnmeldung","Keine Funktion","Ohne_Funktion"]
[52,0,"Dialog Result Update Formula","Dialog Result Update Formula","clsOfficeControllerDoUpdateFormula() running (triggered by FormulaEdit()-Close) - nicht genutzt","DialogResultUpdateFormula"]
[64,0,"Get Cell Value","Get Cell Value","Zellenwert abfragen (keine detailierte Beschreibung im Code)","GetCellValue"]
[203,0,"Ohne Funktion","Ohne Funktion","unbekannte Funktion (keine detailierte Beschreibung im Code)","UnknownFunctionID_203"]
[801,0,"UDF IDL Get Value","UDF IDL Get Value","UDF IDL Wert abfragen (keine detailierte Beschreibung im Code)","UDF_IDLGetValue"]
[802,0,"UDF IDL Combo","UDF IDL Combo","UDF IDL Combo (keine detailierte Beschreibung im Code)","UDF_IDLCombo"]
[803,0,"UDF IDL Result List","UDF IDL Result List","UDF IDL Werteliste (keine detailierte Beschreibung im Code)","UDF_IDLResultList"]
[804,0,"UDF IDL Set Value","UDF IDL Set Value","UDF IDL Wert mitgeben/setzen (keine detailierte Beschreibung im Code)","UDF_IDLSetValue"]
[821,0,"Export Interaction Mode","Export Interaction Mode","Export Interaction Mode (keine detailierte Beschreibung im Code)","ExportInteractionMode"]
[822,0,"Show Dialog IDL Set Value","Show Dialog IDL Set Value","Show Dialog_IDLSetValue (keine detailierte Beschreibung im Code)","ShowDialog_IDLSetValue"]
[823,0,"Process IDL Set Value","Process IDL Set Value","Process IDLSetValue (keine detailierte Beschreibung im Code)","Process_IDLSetValue"]
[824,0,"Reset IDL Set Value","Reset IDL Set Value","Reset IDLSetValue (keine detailierte Beschreibung im Code)","Reset_IDLSetValue"]
[851,0,"Send Job List","Send Job List","Sub-Commands","SendJobList"]
[900,0,"Process Message Stack","Process Message Stack","Internal for use in AddinStateExecGuard","ProcessMessageStack"]
[901,0,"Do Update Cells","Do Update Cells","Internal for use in AddinStateExecGuard","DoUpdateCells"]
[902,0,"Write Formula","Write Formula","Internal for use in AddinStateExecGuard","WriteFormula"]